[Event "Israeli Team U18-ch 2022"]
[Site "Be'er Ya'akov"]
[Date "2022.08.15"]
[Round "4.5"]
[White "Rozen, Eytan"]
[Black "Mishkovsky, Israel"]
[Result "1-0"]
[ECO "D38"]
[WhiteElo "2465"]
[BlackElo "1940"]
[Annotator "TA"]
[PlyCount "59"]
[EventDate "2022.08.14"]
[EventCountry "ISR"]
[SourceTitle "playchess.com"]
[Source "ChessBase"]
[SourceQuality "1"]
[TimeControl "3000+10"]

{[%evp 11,59,-18,51,42,53,33,50,24,64,59,73,47,50,45,98,69,75,80,84,71,76,63,77,68,210,187,193,145,179,183,236,233,230,237,261,275,264,272,269,269,268,270,443,475,472,468,445,421,418,130]} 1. c4 {[%emt 0:00:20]} c6 {[%emt 0:00:30]} 2. Nf3 {[%emt 0:00:53]} d5 {[%emt 0:00:12]} 3. d4 {[%emt 0:00:27]} Nf6 {[%emt 0:00:10]} 4. Nc3 {[%emt 0:00:05]} e6 {[%emt 0:00:27]} 5. Bg5 {[%emt 0:00:09]} h6 {[%emt 0:01:25]} 6. Bh4 {[%emt 0:03:59]} Bb4 {[%emt 0:03:13]} ({Better is} 6... dxc4 $11 7. e4 g5) 7. e3 $14 {[%emt 0:03:05] D38: Queen's Gambit Declined: Ragozin Defence (4 Nf3 Bb4).} O-O {[%emt 0:04:55]} 8. Bd3 {[%emt 0:02:16]} dxc4 {[%emt 0:01:11]} 9. Bxc4 {[%emt 0:00:11] White is slightly better.} Nbd7 {[%emt 0:00:44]} 10. O-O {[%emt 0:00:28]} b5 {[%emt 0:00:47]} 11. Bd3 {[%emt 0:00:18]} (11. Be2 $5 {[%cal Ra2a4]}) 11... Bb7 {[%emt 0:00:58]} 12. Rc1 {[%emt 0:02:09]} a6 {[%emt 0:00:19]} (12... Be7 $14) 13. e4 {[%emt 0:01:01][%cal Be3e4,Be4e5][%mdl 32] aiming for e5.} Be7 {[%emt 0:00:23] [#]} 14. e5 $1 {[%emt 0:00:14] [#]} Ne8 $146 {[%emt 0:01:34]} ({Predecessor:} 14... Nh7 15. Bxe7 Qxe7 16. Ne4 Nb6 17. Nc5 Rfc8 18. Nd2 Ra7 19. Nde4 Ba8 20. Nd6 Rd8 21. Kh1 Nd5 {1-0 (36) Favoni,M (1900)-Tibaldeschi,A (1613) Vercelli 2008}) 15. Bxe7 {[%emt 0:00:42]} Qxe7 {[%emt 0:00:04]} 16. Ne4 {[%emt 0:00:38]} Rc8 $1 {[%emt 0:03:20]} 17. Nc5 $36 {[%emt 0:00:45][%mdl 2048] Black is under pressure. White is more active.} Nb6 {[%emt 0:01:12] Loses the game.} ({Black should try} 17... Nxc5 $14 18. Rxc5 Nc7) 18. Nd2 {[%emt 0:05:05]} Rd8 {[%emt 0:07:40]} 19. Nde4 {[%emt 0:03:14]} (19. Ndb3 $18) 19... Rxd4 {[%emt 0:05:24]} 20. Nxb7 {[%emt 0:01:12][%mdl 64] [#] Discovered Attack} Rxd3 {[%emt 0:07:30]} (20... Qxb7 {was worth a try.} 21. Nc5 Qa8) 21. Qxd3 $18 {[%emt 0:01:27]} Qxb7 {[%emt 0:00:02]} 22. Qc3 {[%emt 0:03:42]} Nc7 {[%emt 0:00:39]} 23. Qxc6 {[%emt 0:06:08]} Qxc6 {[%emt 0:00:03]} 24. Rxc6 {[%emt 0:00:06]} Ncd5 {[%emt 0:00:08]} 25. Nc3 {[%emt 0:00:20]} Ra8 {[%emt 0:03:19]} 26. Rc1 {[%emt 0:01:14]} Nc4 $2 {[%emt 0:01:52]} (26... Kh7 27. Nxd5 Nxd5) 27. Nxd5 {[%emt 0:00:18]} exd5 {[%emt 0:00:14]} 28. b3 {[%emt 0:00:05]} Nxe5 {[%emt 0:00:09]} 29. Rc8+ {[%emt 0:00:16]} Rxc8 {[%emt 0:00:03]} 30. Rxc8+ {[%emt 0:00:03] Weighted Error Value: White=0.07 (flawless) /Black=0.34} 1-0

[Event "Israeli Team U18-ch 2022"]
[Site "Be'er Ya'akov"]
[Date "2022.08.15"]
[Round "4.6"]
[White "Zusman, Tal"]
[Black "Milikow, Yoav"]
[Result "0-1"]
[ECO "D35"]
[WhiteElo "1445"]
[BlackElo "2452"]
[Annotator "TA"]
[PlyCount "144"]
[EventDate "2022.08.14"]
[EventCountry "ISR"]
[SourceTitle "playchess.com"]
[Source "ChessBase"]
[SourceQuality "1"]
[TimeControl "3000+10"]

{[%evp 11,144,25,23,9,19,0,9,0,0,0,0,0,0,0,0,0,0,4,10,0,10,0,157,11,35,2,0,0,24,31,18,0,4,0,0,-14,0,-21,-20,-22,-19,-21,0,-11,0,0,0,0,0,0,0,0,0,0,0,0,0,-4,0,-40,-34,-37,-14,-28,0,-43,0,-30,-5,-40,-32,-34,-34,-63,-20,-28,-29,-29,-29,-29,-29,-41,-38,-38,-36,-36,-36,-41,-44,-56,-58,-56,-25,-96,-32,-99,-45,-162,-172,-186,-189,-342,-355,-401,-408,-527,-158,-280,-260,-266,-266,-256,-293,-278,-268,-264,-105,-247,-209,-234,-229,-275,-222,-338,-331,-331,-246,-225,-220,-210,-195,-444,-394,-5708,-5583]} 1. d4 {[%emt 0:00:01]} Nf6 {[%emt 0:00:04]} 2. c4 {[%emt 0:00:15]} e6 {[%emt 0:00:06]} 3. Nc3 {[%emt 0:00:06]} d5 {[%emt 0:00:02]} 4. cxd5 {[%emt 0:00:08]} exd5 {[%emt 0:00:05]} 5. Bg5 {[%emt 0:00:17]} Bb4 {[%emt 0:00:08]} 6. e3 {[%emt 0:01:20]} h6 {[%emt 0:00:07]} 7. Qa4+ {[%emt 0:03:34] D35: Queen's Gambit Declined: Exchange Variation.} Nc6 {[%emt 0:00:07]} 8. Bxf6 {[%emt 0:01:03]} Qxf6 {[%emt 0:00:08]} 9. Bb5 {[%emt 0:00:11] [#] Black must now prevent Qxb4. The position is equal.} O-O {[%emt 0:04:20]} 10. Nf3 {[%emt 0:00:56]} Bg4 {[%emt 0:03:05]} 11. Be2 {[%emt 0:00:54]} Rfd8 {[%emt 0:02:30]} 12. O-O {[%emt 0:00:34] [#]} Bf8 $146 {[%emt 0:00:48]} ({Predecessor:} 12... a6 13. Rac1 Be6 14. a3 Bd6 15. b4 Na7 16. Rfd1 g5 17. e4 Bf4 18. e5 Qe7 19. Ra1 g4 20. Ne1 c6 21. Qc2 Nb5 {0-1 (61) Palosevic,A (2234)-Nikolic,D (2296) Serbia 2007}) 13. Rac1 {[%emt 0:01:45]} a6 {[%emt 0:01:33]} 14. Qb3 {[%emt 0:02:42][%csl LRb7,LRd5]} Qd6 {[%emt 0:01:03]} 15. Nh4 {[%emt 0:05:18]} ({Don't play} 15. Qxb7 Rdb8 16. Nb5 Rxb7 $19) 15... Bc8 {[%emt 0:05:27]} 16. Bd3 {[%emt 0:04:19]} b6 $2 {[%emt 0:07:17] [#]} (16... Rb8 $11) 17. Nf5 {[%emt 0:06:48]} (17. Qxd5 $1 $16 {[%mdl 512] And now Qe4 would win.} Qxd5 (17... Bb7 18. Be4) 18. Nxd5) 17... Qd7 {[%emt 0:02:15]} 18. Qd1 {[%emt 0:01:56]} Ne7 {[%emt 0:01:40]} 19. Ng3 {[%emt 0:01:28]} Qg4 {[%emt 0:01:51]} 20. Qxg4 {[%emt 0:02:47]} Bxg4 {[%emt 0:00:02]} 21. Nce2 {[%emt 0:00:02]} Rdc8 {[%emt 0:00:32]} 22. b3 {[%emt 0:02:31]} g6 {[%emt 0:00:32]} 23. Rc2 {[%emt 0:00:18]} h5 {[%emt 0:01:13]} 24. h3 {[%emt 0:00:29]} Bd7 {[%emt 0:00:07]} 25. Rfc1 {[%emt 0:00:34]} c6 {[%emt 0:00:24]} 26. Nf4 {[%emt 0:01:25]} Bh6 {[%emt 0:01:12]} 27. Nfe2 {[%emt 0:01:51][%cal Bf4e2,Be2g1,Bg1f3,Bf3e5][%mdl 32]} Kf8 {[%emt 0:04:26][%cal Bg8f8,Bf8e8,Be8d8,Bd8c7,Bc7b7][%mdl 32]} 28. Kh1 {[%emt 0:02:08]} Ke8 {[%emt 0:00:21]} 29. Ng1 {[%emt 0:00:14]} a5 {[%emt 0:00:48]} 30. Nf3 {[%emt 0:00:27]} Kd8 {[%emt 0:00:17]} 31. Ne5 {[%emt 0:00:12]} Be8 {[%emt 0:00:07]} 32. Rb1 {[%emt 0:01:15]} Bg7 {[%emt 0:00:48]} 33. Nf3 {[%emt 0:00:29]} Kc7 {[%emt 0:00:28]} 34. Ng5 {[%emt 0:01:04]} Kb7 {[%emt 0:00:33]} 35. Nf1 {[%emt 0:01:55]} Rc7 {[%emt 0:00:53]} 36. Nd2 {[%emt 0:00:06]} Rac8 {[%emt 0:00:38]} 37. Rbc1 {[%emt 0:00:00]} Bf6 {[%emt 0:01:22]} 38. Ngf3 {[%emt 0:00:07]} Bg7 {[%emt 0:00:22]} 39. Kg1 {[%emt 0:00:31]} Bh6 {[%emt 0:00:12]} 40. Ne5 {[%emt 0:00:08]} f6 {[%emt 0:00:14]} 41. Nef3 {[%emt 0:00:05]} g5 {[%emt 0:00:09]} 42. Nf1 {[%emt 0:01:00]} Ra8 {[%emt 0:00:18]} 43. Ng3 {[%emt 0:00:05]} h4 {[%emt 0:00:43]} 44. Nf5 {[%emt 0:00:17]} Nxf5 {[%emt 0:00:08]} 45. Bxf5 {[%emt 0:00:01]} Rd8 {[%emt 0:00:31]} 46. Kf1 {[%emt 0:00:30]} Bf8 {[%emt 0:00:08]} 47. g3 {[%emt 0:00:22]} hxg3 {[%emt 0:00:08]} 48. fxg3 {[%emt 0:00:01]} Ba3 {[%emt 0:00:24]} 49. Rd1 {[%emt 0:00:16]} Re7 {[%emt 0:00:11]} 50. Re2 {[%emt 0:00:17]} c5 {[%emt 0:00:20]} (50... Bh5 {feels hotter.} 51. Kf2 Rde8 52. Rh1 c5) 51. Kf2 {[%emt 0:00:01]} Bb5 {[%emt 0:00:14]} 52. Bd3 {[%emt 0:00:15]} (52. Rc2 $11) 52... Bd7 {[%emt 0:00:28]} (52... c4 $17 53. bxc4 dxc4) 53. dxc5 {[%emt 0:00:15]} (53. h4 $15) 53... bxc5 {[%emt 0:00:50]} (53... Bxc5 $17 54. Nd4 Bxh3) 54. Bc2 {[%emt 0:00:00]} (54. h4 $15) 54... Bxh3 $19 {[%emt 0:00:15]} 55. Rh1 {[%emt 0:00:41]} Bd7 {[%emt 0:00:17] This bishop pair is nice.} 56. Rh6 $2 {[%emt 0:00:29]} (56. Bd3 {is a better defense.}) 56... Bb5 {[%emt 0:00:10]} 57. Re1 {[%emt 0:00:03]} Bb4 {[%emt 0:00:33]} 58. Rd1 {[%emt 0:00:01]} Bc3 $2 {[%emt 0:00:09]} (58... d4 $19 {and Black stays clearly on top.} 59. e4 d3) 59. Ne1 {[%emt 0:01:01]} (59. Bd3 $17 Bc6 60. Rc1) 59... d4 {[%emt 0:00:14][%cal Bd5d4,Bd4d3,Bd3d2][%mdl 32]} 60. e4 {[%emt 0:00:25]} Bxe1+ {[%emt 0:00:15]} 61. Rxe1 {[%emt 0:00:46]} d3 {[%emt 0:00:06]} 62. Bd1 {[%emt 0:00:21]} d2 {[%emt 0:00:08]} 63. Re3 {[%emt 0:00:03]} Rf8 $2 {[%emt 0:00:27]} (63... Bc6 $19 64. Rf3 Bxe4 65. Rfxf6 Bd5) 64. g4 {[%emt 0:00:39] This move loses the game for White.} (64. a4 $17 Bc6 65. Ke2) 64... Kc7 {[%emt 0:00:19]} 65. Rh1 {[%emt 0:00:33]} Rfe8 {[%emt 0:00:12]} 66. Kf3 {[%emt 0:00:11]} Kb6 {[%emt 0:00:17]} 67. Rh2 {[%emt 0:00:09]} (67. Rh6 $142) 67... Rd8 {[%emt 0:00:09]} 68. Rh6 {[%emt 0:00:11]} Re6 {[%emt 0:00:33]} 69. e5 {[%emt 0:00:13]} Rf8 {[%emt 0:00:08]} 70. Kg3 {[%emt 0:00:18]} Rfe8 {[%emt 0:00:06]} 71. Kf3 $2 {[%emt 0:00:11]} (71. a4 {was necessary.} Ba6 72. Rf3) 71... fxe5 {[%emt 0:00:09]} 72. Rxe5 $2 {[%emt 0:00:09]} (72. Rxe6+ Rxe6 73. Rc3) 72... Rxh6 {[%emt 0:00:05] Weighted Error Value: White=0.27 (precise) /Black=0.25 (precise)} 0-1

[Event "Israeli Team U18-ch 2022"]
[Site "Be'er Ya'akov"]
[Date "2022.08.15"]
[Round "4.7"]
[White "Milikow, Elie"]
[Black "Scheimann, Ori"]
[Result "1-0"]
[ECO "C43"]
[WhiteElo "2433"]
[BlackElo "1552"]
[Annotator "TA"]
[PlyCount "66"]
[EventDate "2022.08.14"]
[EventCountry "ISR"]
[SourceTitle "playchess.com"]
[Source "ChessBase"]
[SourceQuality "1"]
[TimeControl "3000+10"]

{[%evp 20,66,63,71,77,76,83,79,79,70,100,90,102,99,96,96,111,100,127,111,124,107,121,92,141,113,121,122,152,149,150,113,302,264,843,808,2993,2892,2877,2781,2268,2246,1987,900,660,0,1657,1629,29999]} 1. e4 {[%emt 0:00:04]} e5 {[%emt 0:00:05]} 2. Nf3 {[%emt 0:00:04]} Nf6 {[%emt 0:00:02]} 3. d4 {[%emt 0:00:26]} Nxe4 {[%emt 0:00:05]} 4. Bd3 {[%emt 0:00:05]} d5 {[%emt 0:00:10]} 5. Nxe5 {[%emt 0:00:05]} Bd6 {[%emt 0:00:11]} 6. Nc3 {[%emt 0:00:59]} Nxc3 {[%emt 0:00:08]} 7. bxc3 {[%emt 0:00:11]} Nd7 {[%emt 0:00:07]} 8. O-O {[%emt 0:00:23]} O-O {[%emt 0:00:12]} 9. Nxd7 {[%emt 0:02:56]} Bxd7 {[%emt 0:00:07]} 10. Qh5 {[%emt 0:01:32]} g6 {[%emt 0:00:20]} 11. Qxd5 {[%emt 0:01:09]} Bc6 {[%emt 0:00:23] C43: Petroff Defence: 3 d4.} 12. Qg5 {[%emt 0:00:19]} Be7 {[%emt 0:00:38]} 13. Qg3 {[%emt 0:01:43] [#]} Re8 $146 {[%emt 0:11:46] White is better.} ({Predecessor:} 13... Bf6 14. Bf4 Rc8 15. Rae1 Qd5 16. a3 Qa5 17. Bd2 Qxa3 18. Ra1 Qe7 19. Rfe1 Qd7 {1-0 (45) Antipov,M (2584)-Borisova,E (2283) Chess.com INT 2020}) 14. Re1 {[%emt 0:02:11]} Qd7 {[%emt 0:05:06]} 15. Bh6 {[%emt 0:03:39]} Bd6 {[%emt 0:04:16]} 16. Qh4 {[%emt 0:05:08]} Be7 {[%emt 0:03:25] [#]} 17. Qf4 {[%emt 0:00:31]} Bf8 {[%emt 0:01:23]} 18. Bxf8 $40 {[%emt 0:00:57][%mdl 128] Black is in trouble.} Rxf8 {[%emt 0:00:11]} 19. h4 {[%emt 0:04:00] White is more active.} Rae8 {[%emt 0:02:39]} 20. f3 {[%emt 0:03:55]} h5 {[%emt 0:05:24]} 21. Kf2 {[%emt 0:07:36]} Kg7 {[%emt 0:02:22]} (21... b5 $142) 22. Re5 {[%emt 0:00:32][%cal Oe5h5] And now Rxh5! would win.} Rxe5 {[%emt 0:01:09]} 23. Qxe5+ {[%emt 0:04:11]} f6 {[%emt 0:00:51]} 24. Qg3 {[%emt 0:00:33]} Qf7 {[%emt 0:00:40]} 25. Re1 {[%emt 0:09:03]} Bd5 $2 {[%emt 0:01:42]} (25... Re8 $16 {keeps fighting.}) 26. c4 $18 {[%emt 0:00:25]} ({Don't play} 26. Re7 Qxe7 27. Qxg6+ Kh8 $18) 26... Bxc4 {[%emt 0:01:40] [#]} (26... Bc6 27. d5 Ba4) 27. Re7 $3 {[%emt 0:00:33][%mdl 512]} Qxe7 {[%emt 0:00:38]} (27... Bxd3 28. Rxf7+) 28. Qxg6+ {[%emt 0:00:06]} Kh8 {[%emt 0:00:19]} 29. Qh6+ {[%emt 0:00:12]} Kg8 {[%emt 0:00:09]} 30. Bxc4+ {[%emt 0:00:04]} Rf7 {[%emt 0:00:25]} 31. Qg6+ {[%emt 0:00:28]} (31. Qxh5 $142 f5 32. g4 fxg4 33. Bxf7+ Qxf7 34. Qxf7+ Kxf7 35. fxg4) 31... Kf8 {[%emt 0:00:03]} 32. Qh6+ $2 {[%emt 0:00:08]} (32. Bxf7 $18 Qxf7 33. Qxf7+ Kxf7 34. Ke3) 32... Ke8 $2 {[%emt 0:00:51][%mdl 8192]} (32... Kg8 $11 33. Qxh5 f5 34. Qg6+ Kf8 35. Bxf7 Qxf7 36. Qxf7+ Kxf7) 33. Qxh5 {[%emt 0:00:17][%mdl 64] Pin} Qd8 {[%emt 0:08:13] Weighted Error Value: White=0.33/Black=0.33} 1-0

[Event "Israeli Team U18-ch 2022"]
[Site "Be'er Ya'akov"]
[Date "2022.08.15"]
[Round "4.8"]
[White "Zusman, Noa"]
[Black "Gorshtein, Asaf"]
[Result "0-1"]
[ECO "B12"]
[WhiteElo "1246"]
[BlackElo "2112"]
[Annotator "TA"]
[PlyCount "104"]
[EventDate "2022.08.14"]
[EventCountry "ISR"]
[SourceTitle "playchess.com"]
[Source "ChessBase"]
[SourceQuality "1"]
[TimeControl "3000+10"]

{[%evp 11,104,26,35,16,24,21,40,35,37,36,58,47,50,54,55,60,73,77,85,8,7,-21,-27,-33,-21,-13,7,7,16,21,35,0,0,0,0,0,50,0,0,0,0,0,0,0,0,0,9,0,0,0,0,-56,0,0,0,-172,-156,-256,-260,-254,-227,-170,-201,-342,-342,-340,-316,-329,-335,-404,-421,-420,-420,-414,-403,-396,-377,-1111,-1085,-900,-1214,-1558,-1421,-1532,-1271,-1174,-1093,-29980,-2092,-29988,-29989,-29994,-29995,-29997,-29998]} 1. e4 {[%emt 0:00:01]} c6 {[%emt 0:00:05]} 2. d4 {[%emt 0:00:05]} d5 {[%emt 0:00:05]} 3. e5 {[%emt 0:00:04]} Bf5 {[%emt 0:00:04]} 4. Nf3 {[%emt 0:00:15]} e6 {[%emt 0:00:05]} 5. Be2 {[%emt 0:00:18]} Nd7 {[%emt 0:00:21]} 6. O-O {[%emt 0:00:15]} h6 {[%emt 0:00:06]} 7. Re1 {[%emt 0:00:53] B12: Caro-Kann: Advance Variation.} Ne7 {[%emt 0:00:10]} 8. Nbd2 {[%emt 0:04:24][%cal Bb1d2,Bd2f1,Bf1e3][%mdl 32]} g5 {[%emt 0:01:23]} 9. h3 {[%emt 0:00:26] [#] White is slightly better.} Bg7 $146 {[%emt 0:00:24]} ({Predecessor:} 9... Bg6 10. c4 a6 11. b3 Nf5 12. Nf1 Be7 13. N1h2 h5 14. Bd2 Nf8 15. c5 Bh7 {½-½ (36) Eldridge,M (2286)-Kain,A (2384) ICCF email 2012}) 10. Nf1 {[%emt 0:02:40]} Bg6 {[%emt 0:01:45]} 11. Ne3 {[%emt 0:02:47]} c5 {[%emt 0:06:03]} 12. c3 {[%emt 0:03:58]} a6 {[%emt 0:02:18][%cal Ba7a6,Ba6a5][%mdl 32]} 13. a3 {[%emt 0:01:41]} c4 {[%emt 0:00:29]} 14. b3 {[%emt 0:06:58]} b5 {[%emt 0:01:47]} 15. b4 {[%emt 0:00:37]} (15. h4 $16) 15... a5 $11 {[%emt 0:00:22]} 16. Bb2 {[%emt 0:00:12]} Nb6 {[%emt 0:00:55]} 17. Qd2 {[%emt 0:03:58]} Nc6 {[%emt 0:02:37]} 18. Bd1 {[%emt 0:01:07]} axb4 {[%emt 0:03:52]} 19. axb4 {[%emt 0:00:50]} Rxa1 {[%emt 0:00:06]} 20. Bxa1 {[%emt 0:00:07]} Qa8 {[%emt 0:02:53]} 21. Bc2 {[%emt 0:01:09]} Bxc2 {[%emt 0:00:08]} 22. Nxc2 {[%emt 0:01:01]} Qa2 {[%emt 0:00:58]} 23. Qc1 {[%emt 0:02:13]} Kd7 {[%emt 0:01:14]} ({Black should try} 23... Qa8 $11) 24. Kf1 {[%emt 0:02:23]} (24. Na3 $14) 24... Ra8 {[%emt 0:00:21]} 25. Bb2 {[%emt 0:01:35]} Na4 $36 {[%emt 0:00:17][%mdl 2048] White is under pressure.} 26. Ba1 {[%emt 0:00:48]} Nb6 {[%emt 0:04:03]} 27. Bb2 {[%emt 0:02:20]} Qa6 {[%emt 0:00:18]} (27... Na4 $5 28. Ba1 Kc7 $11) 28. Qd2 {[%emt 0:00:54]} Qb7 {[%emt 0:00:49]} 29. Na3 {[%emt 0:00:28]} Na4 {[%emt 0:00:32]} 30. Ra1 {[%emt 0:00:47]} Bf8 {[%emt 0:00:20][%cal Bg7f8,Bf8b4,Bb4c3][%mdl 32]} 31. Qc2 {[%emt 0:01:13] [#]} (31. Ra2 $11) 31... Nxb2 {[%emt 0:04:17]} (31... Nxb4 $1 $15 32. cxb4 Bxb4) 32. Qxb2 {[%emt 0:00:10]} Ra4 {[%emt 0:00:08][%cal Rf8b4]} 33. Qc2 $2 {[%emt 0:00:42] White is on the road to losing.} (33. Nc2 $11 {and White has nothing to worry.}) 33... Qa6 {[%emt 0:00:25]} 34. Qc1 {[%emt 0:01:09] [#]} (34. Qb2 $17) 34... Nxb4 $1 {[%emt 0:00:27][%mdl 512]} 35. cxb4 {[%emt 0:00:30]} Bxb4 {[%emt 0:00:05]} 36. Nc2 {[%emt 0:00:42]} Rxa1 {[%emt 0:00:06]} 37. Qxa1 {[%emt 0:00:26]} (37. Nxa1 $142 Be7 38. Qb1) 37... Qxa1+ $19 {[%emt 0:00:05]} 38. Nxa1 {[%emt 0:00:03]} Bc3 {[%emt 0:00:06]} 39. Nc2 {[%emt 0:00:11]} b4 {[%emt 0:00:04] Threatens to win with ...b3.} 40. Nxb4 {[%emt 0:00:43]} Bxb4 {[%emt 0:00:04][%mdl 4096] Endgame KB-KN} 41. Ke2 {[%emt 0:00:10]} Kc6 {[%emt 0:00:16]} 42. Kd1 {[%emt 0:01:03]} Kb5 {[%emt 0:00:07]} 43. Kc2 {[%emt 0:00:14]} Be7 {[%emt 0:00:19]} 44. h4 $2 {[%emt 0:00:43]} (44. Kc3) 44... g4 {[%emt 0:00:48][%cal Bg5g4,Bg4g3][%mdl 32]} 45. Nh2 {[%emt 0:00:05]} h5 {[%emt 0:00:17]} 46. f3 {[%emt 0:00:01]} g3 {[%emt 0:00:20]} 47. Nf1 {[%emt 0:00:07]} Bxh4 {[%emt 0:00:06] ...Kb4 is the strong threat.} 48. Kc3 {[%emt 0:00:16]} Ka4 {[%emt 0:00:08]} 49. Kd2 {[%emt 0:00:36]} Kb3 {[%emt 0:00:04]} (49... Bg5+ $142 50. Kc3 h4 51. Kb2 h3 52. Nxg3 hxg2 53. Ne2 Kb4 54. Kc2 Be3 55. f4 {[#]} Bxd4 $1 {[%mdl 512]} 56. f5 exf5 $1 57. Kb1 f4 $1 58. Kc2 f3 $1 59. e6 fxe6 $1 60. Nxd4 g1=Q 61. Nc6+ Ka3 62. Nb4 Kxb4 63. Kd2 f2 64. Ke3 f1=Q+ 65. Kd2 Qfg2#) 50. Kc1 {[%emt 0:00:29]} Bg5+ {[%emt 0:00:12] Black mates.} 51. Kb1 {[%emt 0:00:09]} c3 {[%emt 0:00:04][%cal Bc4c3,Bc3c2][%mdl 32]} 52. Ka1 {[%emt 0:00:58]} c2 {[%emt 0:00:08] Weighted Error Value: White=0.71/Black=0.24 (precise)} 0-1